fUSD/lending_fUSD_20240215
["ID","MTS","AMOUNT","RATE_DAILY","PERIOD"]
[314154264,1708027846816,-500.0,0.00038589,7]
[314154265,1708027846826,-500.0,0.00038589,7]
[314154266,1708027846836,-500.0,0.00038589,7]
[314154267,1708027846847,-504.84872914,0.00038589,7]
[314154268,1708027846858,-500.0,0.00038589,7]
[314154269,1708027846868,-500.0,0.00038589,7]
[314154270,1708027846877,-400.66128136,0.00038589,7]
[314154271,1708027846889,-498.39743238,0.00038589,7]
[314154272,1708027846899,-500.0,0.00038589,7]
[314154273,1708027846909,-500.0,0.00038589,7]
[314154274,1708027846919,-500.0,0.00038589,7]
[314154275,1708027846929,-500.0,0.00038589,7]
[314154276,1708027846938,-500.0,0.00038589,7]
[314154277,1708027846953,-500.0,0.00038589,7]
[314154278,1708027846967,-500.0,0.00038589,7]
[314154279,1708027846978,-500.0,0.00038589,7]
[314154280,1708027846988,-500.0,0.00038589,7]
[314154281,1708027846998,-500.0,0.00038589,7]
[314154282,1708027847008,-500.0,0.00038589,7]
[314154283,1708027847018,-518.44206693,0.00038589,7]
[314154284,1708027847027,-166.11207641,0.00038589,7]
[314154285,1708027847036,-500.0,0.00038589,2]
[314154286,1708027847046,-500.0,0.00038589,7]
[314154287,1708027847056,-500.0,0.00038589,7]
[314154288,1708027847066,-500.0,0.00038589,7]
[314154289,1708027847076,-500.0,0.00038589,7]
[314154290,1708027847087,-500.0,0.00038589,7]
[314154291,1708027847097,-504.39,0.00038589,7]
[314154292,1708027847107,-500.0,0.00038589,7]
[314154293,1708027847117,-500.0,0.00038589,7]
[314154294,1708027847127,-500.0,0.00038589,7]
[314154295,1708027847136,-510.11288273,0.00038589,7]
[314154296,1708027847146,-528.74716271,0.00038589,7]
[314154297,1708027847155,-154.84323785,0.00038589,7]
[314154298,1708027847165,-503.56176881,0.00038589,7]
[314154299,1708027847174,-500.0,0.00038589,7]
[314154300,1708027847183,-500.0,0.00038589,7]
[314154301,1708027847193,-500.0,0.00038589,7]
[314154302,1708027847207,-500.0,0.00038589,7]
[314154303,1708027847217,-500.0,0.00038589,7]
[314154304,1708027847228,-522.21501077,0.00038589,7]
[314154305,1708027847238,-500.0,0.00038589,7]
[314154306,1708027847247,-500.43227911,0.00038589,7]
[314154307,1708027847256,-500.0,0.00038589,7]
[314154308,1708027847266,-500.0,0.00038589,7]
[314154309,1708027847277,-500.0,0.00038589,7]
[314154310,1708027847286,-500.0,0.00038589,7]
[314154311,1708027847296,-500.0,0.00038589,7]
[314154312,1708027847305,-500.0,0.00038589,7]
[314154313,1708027847315,-500.0,0.00038589,7]
[314154314,1708027847325,-500.0,0.00038589,7]
[314154315,1708027847335,-500.0,0.00038589,7]
[314154316,1708027847346,-500.0,0.00038589,7]
[314154317,1708027847355,-500.0,0.00038589,7]
[314154318,1708027847366,-527.69713697,0.00038589,7]
[314154319,1708027847374,-500.0,0.00038589,7]
[314154320,1708027847384,-469.77976869,0.00038589,7]
[314154321,1708027847393,-500.0,0.00038589,7]
[314154322,1708027847402,-430.75682701,0.00038589,7]
[314154323,1708027847413,-153.17142143,0.00038589,7]
[314154324,1708027847423,-500.0,0.00038589,7]
[314154325,1708027847432,-500.0,0.00038589,7]
[314154326,1708027847442,-512.22557376,0.00038589,7]
[314154327,1708027847591,-500.0,0.00038589,2]
[314154328,1708027847601,-500.0,0.00038589,7]
[314154329,1708027847611,-500.0,0.00038589,7]
[314154330,1708027847621,-500.0,0.00038589,7]
[314154331,1708027847630,-500.0,0.00038589,7]
[314154332,1708027847640,-500.0,0.00038589,7]
[314154333,1708027847649,-500.0,0.00038589,7]
[314154334,1708027847659,-500.0,0.00038589,7]
[314154335,1708027847669,-500.0,0.00038589,7]
[314154336,1708027847679,-500.0,0.00038589,7]
[314154337,1708027847689,-500.0,0.00038589,7]
[314154338,1708027847699,-500.0,0.00038589,7]
[314154339,1708027847709,-500.0,0.00038589,7]
[314154340,1708027847718,-500.0,0.00038589,7]
[314154341,1708027847733,-500.0,0.00038589,7]
[314154342,1708027847742,-500.0,0.00038589,7]
[314154343,1708027847751,-500.0,0.00038589,7]
[314154344,1708027847761,-500.0,0.00038589,7]
[314154345,1708027847771,-500.0,0.00038589,7]
[314154346,1708027847783,-500.0,0.00038589,7]
[314154347,1708027847794,-500.0,0.00038599,7]
[314154348,1708027847803,-574.08497498,0.00038599,7]
[314154349,1708027847814,-500.0,0.00038599,7]
[314154350,1708027847823,-500.0,0.00038599,7]
[314154351,1708027847833,-500.0,0.00038599,7]
[314154352,1708027847842,-500.0,0.00038599,7]
[314154353,1708027847853,-556.3337281,0.00038599,7]
[314154354,1708027847863,-521.35394073,0.00038599,7]
[314154355,1708027847872,-500.0,0.00038599,7]
[314154356,1708027847882,-500.0,0.00038599,7]
[314154357,1708027847891,-500.0,0.00038599,7]
[314154358,1708027847900,-516.43203354,0.00038599,7]
[314154359,1708027847908,-417.07754055,0.00038599,7]
[314154360,1708027847918,-171.61671148,0.00038599,7]
[314154361,1708027847927,-500.0,0.00038599,7]
[314154362,1708027847936,-519.02279482,0.00038599,7]
[314154363,1708027847945,-500.0,0.00038599,7]
[314154364,1708027847954,-500.0,0.00038599,7]
[314154365,1708027847964,-1911.35,0.000386,2]
[314154366,1708027847974,-500.0,0.0003863,7]
[314154367,1708027847988,-500.0,0.0003863,7]
[314154368,1708027847997,-500.0,0.0003863,7]
[314154369,1708027848006,-500.0,0.0003863,7]
[314154370,1708027848017,-564.84509818,0.0003863,7]
[314154371,1708027848026,-500.0,0.0003863,7]
[314154372,1708027848035,-500.0,0.0003863,7]
[314154373,1708027848045,-500.0,0.0003863,7]
[314154374,1708027848054,-500.0,0.0003863,7]
[314154375,1708027848064,-500.0,0.0003863,7]
[314154376,1708027848073,-500.0,0.0003863,7]
[314154377,1708027848084,-517.8069897,0.0003863,7]
[314154378,1708027848093,-500.0,0.0003863,7]
[314154379,1708027848103,-500.0,0.0003863,7]
[314154380,1708027848113,-514.18308753,0.0003863,7]
[314154381,1708027848122,-500.0,0.0003863,7]
[314154382,1708027848132,-500.0,0.0003863,7]
[314154383,1708027848141,-500.0,0.0003863,7]
[314154384,1708027848150,-500.0,0.0003863,7]
[314154385,1708027848160,-518.48608303,0.0003863,7]
[314154386,1708027848169,-500.0,0.0003863,7]
[314154387,1708027848179,-500.0,0.0003863,7]
[314154388,1708027848188,-500.0,0.0003863,7]
[314154389,1708027848197,-502.9539551,0.0003863,7]
[314154390,1708027848208,-408.17691274,0.0003863,7]
[314154391,1708027848217,-500.0,0.0003863,7]
[314154392,1708027848229,-500.0,0.0003863,7]
[314154393,1708027848238,-500.0,0.0003863,7]
[314154394,1708027848248,-513.99335436,0.0003863,7]
[314154395,1708027848257,-500.0,0.0003863,7]
[314154396,1708027848266,-500.0,0.0003863,7]
[314154397,1708027848275,-500.0,0.0003863,7]
[314154398,1708027848285,-500.0,0.0003863,7]
[314154399,1708027848294,-500.0,0.0003863,7]
[314154400,1708027848304,-500.0,0.0003863,7]
[314154401,1708027848313,-500.0,0.0003863,7]
[314154402,1708027848322,-549.33164318,0.0003863,7]
[314154403,1708027848331,-500.0,0.0003863,7]
[314154404,1708027848340,-500.0,0.0003863,7]
[314154405,1708027848349,-621.35313092,0.0003863,7]
[314154406,1708027848359,-500.0,0.0003863,7]
[314154407,1708027848368,-500.0,0.0003863,7]
[314154408,1708027848377,-500.0,0.0003863,7]
[314154409,1708027848387,-511.81594067,0.0003863,7]
[314154410,1708027848397,-213.78158265,0.0003863,7]
[314154411,1708027848405,-500.0,0.0003863,7]
[314154412,1708027848414,-500.0,0.0003863,7]
[314154413,1708027848424,-150.0,0.0003863,7]
[314154414,1708027848433,-500.0,0.0003863,7]
[314154415,1708027848445,-500.0,0.0003863,7]
[314154416,1708027848453,-500.0,0.0003863,7]
[314154417,1708027848463,-500.0,0.0003863,7]
[314154418,1708027848473,-500.0,0.0003863,7]
[314154419,1708027848484,-402.78663686,0.0003863,7]
[314154420,1708027848494,-500.0,0.0003863,7]
[314154421,1708027848503,-500.0,0.0003863,7]
[314154422,1708027848512,-500.0,0.0003863,7]
[314154423,1708027848523,-500.0,0.0003863,7]
[314154424,1708027848532,-500.0,0.0003863,7]
[314154425,1708027848541,-500.0,0.0003863,7]
[314154426,1708027848550,-500.0,0.0003863,7]
[314154427,1708027848559,-500.0,0.0003863,7]
[314154428,1708027848568,-390.70057527,0.0003863,7]
[314154429,1708027848578,-500.0,0.0003863,7]
[314154430,1708027848587,-683.68,0.0003863,7]
[314154431,1708027848596,-500.0,0.0003863,7]
[314154432,1708027848606,-500.0,0.0003863,7]
[314154433,1708027848615,-500.0,0.0003863,7]
[314154434,1708027848625,-500.0,0.0003863,7]
[314154435,1708027848634,-500.0,0.0003863,7]
[314154436,1708027848644,-500.0,0.0003863,7]
[314154437,1708027848654,-500.0,0.0003863,7]
[314154438,1708027848663,-500.0,0.0003863,7]
[314154439,1708027848672,-500.0,0.0003863,7]
[314154440,1708027848683,-500.0,0.0003863,7]
[314154441,1708027848692,-500.0,0.0003863,7]
[314154442,1708027848702,-500.0,0.0003863,7]
[314154443,1708027848712,-500.0,0.0003863,7]
[314154444,1708027848721,-500.0,0.0003863,7]
[314154445,1708027848733,-583.14819807,0.0003863,7]
[314154446,1708027848742,-501.25,0.0003863,7]
[314154447,1708027848751,-500.0,0.0003863,7]
[314154448,1708027848762,-849.71,0.0003863,7]
[314154449,1708027848775,-500.0,0.0003863,7]
[314154450,1708027848786,-500.0,0.0003863,7]
[314154451,1708027848797,-929.49,0.0003863,7]
[314154452,1708027848808,-500.0,0.0003863,7]
[314154453,1708027848817,-500.0,0.0003863,7]
[314154454,1708027848827,-715.05,0.0003863,7]
[314154455,1708027848835,-500.0,0.0003863,7]
[314154456,1708027848846,-544.32,0.0003863,7]
[314154457,1708027848856,-619.54,0.0003863,7]
[314154458,1708027848865,-500.0,0.0003863,7]
[314154459,1708027848874,-500.0,0.0003863,7]
[314154460,1708027848884,-500.0,0.0003863,7]
[314154461,1708027848895,-500.0,0.0003863,7]
[314154462,1708027848904,-500.0,0.0003863,7]
[314154463,1708027848913,-500.0,0.0003863,7]
[314154464,1708027848924,-2425.28,0.0003863,7]
[314154465,1708027848934,-826.8,0.0003863,7]
[314154466,1708027848945,-602.17071513,0.0003863,7]
[314154467,1708027848955,-500.0,0.0003863,7]
[314154468,1708027848964,-500.0,0.0003863,7]
[314154469,1708027848974,-500.0,0.0003863,7]
[314154470,1708027848985,-611.38,0.0003863,7]
[314154471,1708027848994,-339.37503507,0.0003863,7]
[314154472,1708027849003,-500.0,0.0003863,7]
[314154473,1708027849012,-500.0,0.0003863,7]
[314154474,1708027849022,-500.0,0.0003863,7]
[314154475,1708027849031,-484.64953903,0.0003863,7]
[314154476,1708027849041,-500.0,0.0003863,7]
[314154477,1708027849050,-500.0,0.0003863,7]
[314154478,1708027849059,-500.0,0.0003863,7]
[314154479,1708027849069,-500.0,0.0003863,7]
[314154480,1708027849078,-500.0,0.0003863,7]
[314154481,1708027849087,-500.0,0.0003863,7]
[314154482,1708027849096,-500.0,0.0003863,7]
[314154483,1708027849106,-500.0,0.0003863,7]
[314154484,1708027849115,-500.0,0.0003863,7]
[314154485,1708027849125,-500.0,0.0003863,7]
[314154486,1708027849135,-500.0,0.0003863,7]
[314154487,1708027849145,-500.0,0.0003863,7]
[314154488,1708027849156,-500.0,0.0003863,7]
[314154489,1708027849166,-500.0,0.0003863,7]
[314154490,1708027849176,-500.0,0.0003863,7]
[314154491,1708027849186,-695.13,0.0003863,7]
[314154492,1708027849195,-500.0,0.0003863,7]
[314154493,1708027849204,-500.0,0.0003863,7]
[314154494,1708027849214,-500.0,0.0003863,7]
[314154495,1708027849224,-500.0,0.0003863,7]
[314154496,1708027849235,-1348.0,0.0003863,7]
[314154497,1708027849244,-500.0,0.0003863,7]
[314154498,1708027849254,-500.0,0.0003863,7]
[314154499,1708027849264,-500.0,0.0003863,7]
[314154500,1708027849274,-500.0,0.0003863,7]
[314154501,1708027849285,-500.0,0.0003863,7]
[314154502,1708027849297,-500.0,0.0003863,7]
[314154503,1708027849307,-500.0,0.0003863,7]
[314154504,1708027849318,-500.0,0.0003863,7]
[314154505,1708027849328,-500.0,0.0003863,7]
[314154506,1708027849338,-542.79,0.0003863,7]
[314154507,1708027849347,-815.53,0.0003863,7]
[314154508,1708027849356,-500.0,0.0003863,7]
[314154509,1708027849365,-500.0,0.0003863,7]
[314154510,1708027849375,-536.76,0.0003863,7]
[314154511,1708027849383,-500.0,0.0003863,7]
[314154512,1708027849393,-500.0,0.0003863,7]
[314154513,1708027849402,-229.89893227,0.0003863,7]
[314154514,1708027849411,-587.38,0.0003863,7]
[314154515,1708027849420,-500.0,0.0003863,7]
[314154516,1708027849429,-500.0,0.0003863,7]
[314154517,1708027849439,-500.0,0.0003863,7]
[314154518,1708027849448,-500.0,0.0003863,7]
[314154519,1708027849457,-500.0,0.0003863,7]
[314154520,1708027849467,-549.25,0.0003863,7]
[314154521,1708027849477,-1534.25,0.0003863,7]
[314154522,1708027849487,-500.0,0.0003863,7]
[314154523,1708027849496,-500.0,0.0003863,7]
[314154524,1708027849505,-840.44,0.0003863,7]
[314154525,1708027849514,-500.0,0.0003863,7]
[314154526,1708027849524,-500.0,0.0003863,7]
[314154527,1708027849533,-500.0,0.0003863,7]
[314154528,1708027849542,-649.58,0.0003863,7]
[314154529,1708027849551,-353.1308435,0.0003863,7]
[314154530,1708027849560,-500.0,0.0003863,7]
[314154531,1708027849569,-500.0,0.0003863,7]
[314154532,1708027849579,-553.41,0.0003863,7]
[314154533,1708027849591,-500.0,0.0003863,7]
[314154534,1708027849611,-500.0,0.0003863,7]
[314154535,1708027849621,-807.79,0.0003863,7]
[314154536,1708027849630,-500.0,0.0003863,7]
[314154537,1708027849639,-8765.41,0.0003863,7]
[314154538,1708027849648,-500.0,0.0003863,7]
[314154539,1708027849658,-500.0,0.0003863,7]
[314154540,1708027849667,-500.0,0.0003863,7]
[314154541,1708027849677,-500.0,0.0003863,7]
[314154542,1708027849686,-500.0,0.0003863,7]
[314154543,1708027849695,-500.0,0.0003863,7]
[314154544,1708027849706,-500.0,0.0003863,7]
[314154545,1708027849715,-500.0,0.0003863,7]
[314154546,1708027849726,-657.23,0.0003863,7]
[314154547,1708027849736,-500.0,0.0003863,7]
[314154548,1708027849746,-580.46279122,0.0003863,7]
[314154549,1708027849756,-1540.25,0.0003863,7]
[314154550,1708027849766,-500.0,0.0003863,7]
[314154551,1708027849778,-782.67,0.0003863,7]
[314154552,1708027849787,-500.0,0.0003863,7]
[314154553,1708027849797,-180.0,0.0003864,2]
[314154554,1708027849807,-1130.26321765,0.00038711,10]
[314154555,1708027849818,-152.0,0.00038715,7]
[314154556,1708027849827,-11429.91331671,0.00038721,12]
[314154557,1708027849837,-1000.0,0.00038753,2]
[314154558,1708027849847,-1186.62475854,0.00038765,2]
[314154559,1708027849858,-151.0,0.00038769,7]
[314154560,1708027849867,-151.0,0.00038769,7]
[314154561,1708027849877,-509.5626,0.00038769,2]
[314154562,1708027849886,-150.0,0.00038772,2]
[314154563,1708027849895,-150.0,0.00038772,2]
[314154564,1708027849906,-145262.41942074,0.00038773,2]
[314154565,1708027850079,-99737.58057926,0.00038773,2]
[314154566,1708027850089,-230.4933,0.00038773,2]
[314154567,1708027850098,-2762.4701,0.00038773,2]
[314154568,1708027850107,-1227.036,0.00038773,2]
[314154569,1708027850117,-1000.0,0.00038773,2]
[314154570,1708027850126,-39479.1179,0.00038773,2]
[314154571,1708027850136,-13302.2456898,0.00038773,2]
[314154572,1708027850289,-342.40886494,0.00035999,4]
[314154573,1708027850380,-603.96343893,0.00035999,4]
[314154574,1708027850563,-751.30015225,0.00035999,4]
[314154575,1708027850573,-426.69875789,0.00036087,2]
[314154576,1708027850585,-1950.58610927,0.00036087,2]
[314154577,1708027850642,-736.55261284,0.00036087,2]
[314154578,1708027850651,-37.73066923,0.00037699,2]
[314154579,1708027850697,-316.220239,0.00037699,2]
[314154580,1708027850710,-394.62600106,0.00037699,2]
[314154581,1708027850721,-118.57309071,0.00037699,2]
[314154582,1708027850731,-684.078861,0.00037699,2]
[314154583,1708027850742,-375.771139,0.00037699,2]
[314154584,1708027850751,-300.0,0.00038,30]
[314154585,1708027850760,-1358.25900587,0.0003807,2]
[314154586,1708027850776,-2992.32307398,0.0003807,2]
[314154587,1708027850787,-496.332,0.0003807,2]
[314154588,1708027850802,-1855.68898327,0.0003807,2]
[314154589,1708027850825,-877.77369862,0.0003807,2]
[314154590,1708027850837,-4432.50346096,0.0003807,2]
[314154591,1708027851078,-339.18297734,0.0002509,2]
[314154592,1708027851090,-129.4746231,0.0002509,2]
[314154593,1708027851100,-208.5048773,0.0003807,2]
[314154594,1708027851110,-216.15251474,0.00038356,7]
[314154595,1708027851119,-246.99,0.00038356,2]
[314154596,1708027851129,-3000.0,0.0003846,2]
[314154597,1708027851139,-129048.25141906,0.00038773,2]
[314154598,1708027851151,-48533.28434689,0.00038773,2]
[314154599,1708027851163,-9809.17108749,0.00038773,2]
[314154600,1708027851176,-3637.59445777,0.00038773,2]
[314154601,1708027851188,-34246.09659899,0.00038773,2]
[314154602,1708027851198,-247.405127,0.00038773,7]
[314154603,1708027851208,-290.715238,0.00038773,7]
[314154604,1708027851218,-236.392549,0.00038773,7]
[314154605,1708027851228,-151.0,0.00038773,7]
[314154606,1708027851238,-151.0,0.00038773,7]
[314154607,1708027851248,-151.0,0.00038773,7]
[314154608,1708027851258,-151.0,0.00038773,7]
[314154609,1708027851268,-151.0,0.00038773,7]
[314154610,1708027851279,-151.0,0.00038773,7]
[314154611,1708027851289,-173.262181,0.00038773,7]
[314154612,1708027851298,-151.0,0.00038773,7]
[314154613,1708027851308,-151.0,0.00038773,7]
[314154614,1708027851317,-151.0,0.00038773,7]
[314154615,1708027851327,-151.0,0.00038773,7]
[314154616,1708027851336,-151.0,0.00038773,7]
[314154617,1708027851346,-220.257295,0.00038773,7]
[314154618,1708027851356,-151.0,0.00038773,7]
[314154619,1708027851365,-151.0,0.00038773,2]
[314154620,1708027851375,-151.0,0.00038773,2]
[314154621,1708027851385,-151.0,0.00038773,7]
[314154622,1708027851395,-173.453312,0.00038773,7]
[314154623,1708027851405,-151.0,0.00038773,7]
[314154624,1708027851415,-151.0,0.00038773,7]
[314154625,1708027851425,-500.0,0.000388,2]
[314154626,1708027851435,-500.0,0.00038807,2]
[314154627,1708027851444,-398.63178718,0.00038807,7]
[314154628,1708027851454,-500.0,0.00038807,7]
[314154629,1708027851464,-500.0,0.00038807,7]
[314154630,1708027851473,-500.0,0.00038807,7]
[314154631,1708027851486,-500.0,0.00038807,7]
[314154632,1708027851495,-500.0,0.00038807,7]
[314154633,1708027851505,-500.0,0.00038807,7]
[314154634,1708027851514,-500.0,0.00038807,7]
[314154635,1708027851539,-163.1,0.00038813,2]
[314154636,1708027851549,-150.0,0.00038855,2]
[314154637,1708027851558,-2000.0,0.00038859,2]
[314154638,1708027851568,-200.0,0.00038859,2]
[314154639,1708027851578,-1169.26065296,0.00038859,2]
[314154640,1708027851588,-500.0,0.00038863,7]
[314154641,1708027851598,-500.0,0.00038863,7]
[314154642,1708027851607,-1000.0,0.00038863,7]
[314154643,1708027851617,-631.74684263,0.00038863,7]
[314154644,1708027851628,-500.0,0.00038863,7]
[314154645,1708027851638,-500.0,0.00038863,2]
[314154646,1708027851648,-500.0,0.00038863,7]
[314154647,1708027851658,-500.0,0.00038863,7]
[314154648,1708027851667,-500.0,0.00038863,7]
[314154649,1708027851678,-500.00000067,0.00038863,7]
[314154650,1708027851687,-500.0,0.00038863,7]
[314154651,1708027851697,-518.23,0.00038863,7]
[314154652,1708027851707,-500.0,0.00038863,7]
[314154653,1708027851717,-500.0,0.00038863,7]
[314154654,1708027851727,-500.0,0.00038863,7]
[314154655,1708027851739,-500.0,0.00038863,7]
[314154656,1708027851749,-185.1352114,0.00038863,2]
[314154657,1708027851758,-500.0,0.00038863,7]
[314154658,1708027851769,-500.0,0.00038863,7]
[314154659,1708027851782,-500.0,0.00038863,7]
[314154660,1708027851792,-500.0,0.00038863,7]
[314154661,1708027851801,-500.0,0.00038863,7]
[314154662,1708027851811,-500.0,0.00038863,7]
[314154663,1708027851821,-500.0,0.00038863,7]
[314154664,1708027851831,-500.0,0.00038863,2]
[314154665,1708027851840,-500.0,0.00038863,7]
[314154666,1708027851852,-216.54793737,0.00038873,7]
[314154667,1708027851861,-500.0,0.00038873,7]
[314154668,1708027851871,-494.8193932,0.00038873,7]
[314154669,1708027851881,-502.96829363,0.00038873,7]
[314154670,1708027851890,-448.00897691,0.00038885,2]
[314154671,1708027851900,-1271.99426726,0.00038885,2]
[314154672,1708027851910,-531.80985415,0.00038885,2]
[314154673,1708027851919,-495.35833456,0.00038885,2]
[314154674,1708027851929,-2407.35672694,0.00038885,2]
[314154675,1708027851939,-1345.14592119,0.00038886,9]
[314154676,1708027851948,-500.0,0.00038891,7]
[314154677,1708027851957,-4049.25250927,0.000389,15]
[314154678,1708027851971,-500.0,0.00038904,7]
[314154679,1708027851982,-530.07786253,0.00038904,7]
[314154680,1708027852004,-500.0,0.00038904,7]
[314154681,1708027852020,-190.77513377,0.00038904,7]
[314154682,1708027852035,-500.0,0.00038904,7]
[314154683,1708027852050,-500.0,0.00038904,7]
[314154684,1708027852064,-318.17986544,0.00038904,7]
[314154685,1708027852076,-500.0,0.00038904,7]
[314154686,1708027852090,-500.0,0.00038904,7]
[314154687,1708027852105,-500.0,0.00038904,7]
[314154688,1708027852118,-150.0,0.00038904,7]
[314154689,1708027852131,-500.0,0.00038904,7]
[314154690,1708027852145,-500.0,0.00038904,7]
[314154691,1708027852160,-500.0,0.00038904,7]
[314154692,1708027852172,-500.0,0.00038904,7]
[314154693,1708027852183,-500.0,0.00038904,7]
[314154694,1708027852198,-500.0,0.00038904,7]
[314154695,1708027852211,-500.0,0.00038904,7]
[314154696,1708027852223,-500.0,0.00038904,7]
[314154697,1708027852237,-500.0,0.00038904,7]
[314154698,1708027852250,-500.0,0.00038904,7]
[314154699,1708027852266,-500.0,0.00038904,7]
[314154700,1708027852280,-500.0,0.00038904,7]
[314154701,1708027852292,-500.0,0.00038904,7]
[314154702,1708027852302,-500.0,0.00038904,7]
[314154703,1708027852314,-259.47,0.00038904,7]
[314154704,1708027852328,-500.0,0.00038904,7]
[314154705,1708027852340,-500.0,0.00038904,7]
[314154706,1708027852355,-500.0,0.00038904,7]
[314154707,1708027852372,-500.0,0.00038904,7]
[314154708,1708027852385,-500.0,0.00038904,7]
[314154709,1708027852397,-500.0,0.00038904,7]
[314154710,1708027852409,-500.0,0.00038904,7]
[314154711,1708027852423,-500.0,0.00038904,7]
[314154712,1708027852435,-500.0,0.00038904,7]
[314154713,1708027852449,-500.0,0.00038904,7]
[314154714,1708027852463,-501.25,0.00038904,7]
[314154715,1708027852476,-500.0,0.00038904,7]
[314154716,1708027852490,-849.71,0.00038904,7]
[314154717,1708027852502,-500.0,0.00038904,7]
[314154718,1708027852513,-929.49,0.00038904,7]
[314154719,1708027852524,-500.0,0.00038904,7]
[314154720,1708027852535,-500.0,0.00038904,7]
[314154721,1708027852548,-715.05,0.00038904,7]
[314154722,1708027852561,-500.0,0.00038904,7]
[314154723,1708027852573,-544.32,0.00038904,7]
[314154724,1708027852589,-619.54,0.00038904,7]
[314154725,1708027852601,-500.0,0.00038904,7]
[314154726,1708027852612,-500.0,0.00038904,7]
[314154727,1708027852628,-500.0,0.00038904,7]
[314154728,1708027852639,-500.0,0.00038904,7]
[314154729,1708027852651,-500.0,0.00038904,7]
[314154730,1708027852664,-500.0,0.00038904,7]
[314154731,1708027852679,-2425.28,0.00038904,7]
[314154732,1708027852692,-826.8,0.00038904,7]
[314154733,1708027852708,-500.0,0.00038904,7]
[314154734,1708027852723,-500.0,0.00038904,7]
[314154735,1708027852738,-500.0,0.00038904,7]
[314154736,1708027852752,-611.38,0.00038904,7]
[314154737,1708027852766,-500.0,0.00038904,7]
[314154738,1708027852783,-500.0,0.00038904,7]
[314154739,1708027852795,-500.0,0.00038904,7]
[314154740,1708027852808,-500.0,0.00038904,7]
[314154741,1708027852822,-501.97421646,0.00038904,7]
[314154742,1708027852835,-500.0,0.00038904,7]
[314154743,1708027852847,-500.0,0.00038904,7]
[314154744,1708027852860,-500.0,0.00038904,7]
[314154745,1708027852874,-500.0,0.00038904,7]
[314154746,1708027852886,-500.0,0.00038904,7]
[314154747,1708027852898,-500.0,0.00038904,7]
[314154748,1708027852910,-500.0,0.00038904,7]
[314154749,1708027852921,-500.0,0.00038904,7]
[314154750,1708027852933,-500.0,0.00038904,7]
[314154751,1708027852945,-500.0,0.00038904,7]
[314154752,1708027852958,-500.0,0.00038904,7]
[314154753,1708027852970,-500.0,0.00038904,7]
[314154754,1708027852983,-695.13,0.00038904,7]
[314154755,1708027852994,-500.0,0.00038904,7]
[314154756,1708027853006,-500.0,0.00038904,7]
[314154757,1708027853017,-500.0,0.00038904,7]
[314154758,1708027853028,-500.0,0.00038904,7]
[314154759,1708027853039,-1348.0,0.00038904,7]
[314154760,1708027853050,-500.0,0.00038904,7]
[314154761,1708027853060,-500.0,0.00038904,7]
[314154762,1708027853071,-500.0,0.00038904,7]
[314154763,1708027853083,-500.0,0.00038904,7]